[Event "15th Governor Cup 2019"]
[Site "Khanty-Mansiysk"]
[Date "2019.11.20"]
[Round "3.3"]
[White "Iljiushenok, Ilia"]
[Black "Timofeev, Artyom"]
[Result "1/2-1/2"]
[ECO "B45"]
[WhiteElo "2532"]
[BlackElo "2595"]
[Annotator "RC"]
[PlyCount "104"]
[EventDate "2019.11.19"]
[EventType "swiss"]
[EventCountry "RUS"]
[SourceTitle "playchess.com"]
[Source "ChessBase"]
[SourceQuality "1"]
[TimeControl "5400+30"]

1. e4 {[%emt 0:00:00]} c5 {[%emt 0:00:00]} 2. Nf3 {[%emt 0:00:00]} e6 {[%emt 0:00:55]} 3. d4 {[%emt 0:00:11]} cxd4 {[%emt 0:00:35]} 4. Nxd4 {[%emt 0:00:04]} Nc6 {[%emt 0:00:18]} 5. Nc3 {[%emt 0:00:05]} d6 {[%emt 0:00:12]} 6. Be3 {[%emt 0:03:31]} Nf6 {[%emt 0:00:39]} 7. Qe2 {[%emt 0:00:14]} Bd7 {[%emt 0:11:59]} 8. O-O-O {[%emt 0:02:20]} a6 {[%emt 0:01:44]} 9. f4 {[%emt 0:10:41]} b5 {[%emt 0:00:35]} 10. e5 {[%emt 0:04:27]} b4 {[%emt 0:03:42]} 11. Nxc6 {[%emt 0:00:47]} Bxc6 {[%emt 0:00:06]} 12. Qc4 {[%emt 0:00:09]} Bd7 {[%emt 0:02:26]} 13. exf6 {[%emt 0:04:25]} bxc3 {[%emt 0:00:10]} 14. Qxc3 {[%emt 0:02:51]} Qxf6 {[%emt 0:02:30]} 15. Qd2 {[%emt 0:03:20]} Be7 {[%emt 0:04:48]} 16. Bd4 {[%emt 0:05:22]} Qh6 {[%emt 0:00:55]} 17. g4 {[%emt 0:18:11]} O-O {[%emt 0:01:49]} 18. g5 {[%emt 0:06:57]} Qh4 {[%emt 0:00:35]} 19. Rg1 {[%emt 0:03:51]} Bb5 {[%emt 0:09:54]} 20. Rg3 {[%emt 0:08:16]} Bxf1 {[%emt 0:06:03]} 21. Rxf1 {[%emt 0:00:02]} Rfc8 {[%emt 0:00:20]} 22. Qe2 {[%emt 0:05:06]} e5 {[%emt 0:12:22]} 23. Be3 {[%emt 0:04:18]} d5 {[%emt 0:01:39]} 24. Qf3 {[%emt 0:03:02]} exf4 {[%emt 0:08:04]} 25. Bxf4 {[%emt 0:00:57]} Rc4 {[%emt 0:00:45]} 26. Bd2 {[%emt 0:05:28]} Rf8 {[%emt 0:00:51]} 27. Qxd5 {[%emt 0:00:06]} Rc5 {[%emt 0:04:08]} 28. Qd3 {[%emt 0:02:33]} Rd8 {[%emt 0:00:56]} 29. Qb3 {[%emt 0:01:19]} Rf8 {[%emt 0:01:48]} 30. Rgf3 {[%emt 0:01:35]} Rb5 {[%emt 0:02:51]} 31. Qd3 {[%emt 0:00:01]} Bxg5 {[%emt 0:04:10]} 32. Rh3 {[%emt 0:03:10]} Bxd2+ {[%emt 0:00:35]} 33. Kb1 {[%emt 0:00:19]} Rxb2+ {[%emt 0:03:15]} 34. Kxb2 {[%emt 0:00:01]} Qb4+ {[%emt 0:00:09]} 35. Ka1 {[%emt 0:00:05]} Bh6 {[%emt 0:00:18]} 36. Rxh6 {[%emt 0:02:09]} gxh6 {[%emt 0:00:06]} 37. Qg3+ {[%emt 0:00:08]} Kh8 {[%emt 0:00:06]} 38. Qe5+ {[%emt 0:00:08]} f6 {[%emt 0:00:09]} 39. Rxf6 {[%emt 0:00:11]} Rxf6 {[%emt 0:00:22]} 40. Qxf6+ {[%emt 0:00:02]} Kg8 {[%emt 0:00:06]} 41. c3 {[%emt 0:02:32]} Qc4 {[%emt 0:02:27]} 42. h4 {[%emt 0:00:39]} Qe2 {[%emt 0:02:48]} 43. Kb1 {[%emt 0:00:59]} Qd1+ {[%emt 0:02:35]} 44. Kb2 {[%emt 0:00:01]} Qd2+ {[%emt 0:00:09]} 45. Kb1 {[%emt 0:00:47]} Qd1+ {[%emt 0:00:05]} 46. Kb2 {[%emt 0:00:01]} Qd2+ {[%emt 0:00:07]} 47. Kb3 {[%emt 0:00:03]} Qd1+ {[%emt 0:00:06]} 48. Kb4 {[%emt 0:01:55]} Qb1+ {[%emt 0:00:08]} 49. Ka3 {[%emt 0:00:30]} Qc1+ {[%emt 0:00:07]} 50. Kb3 {[%emt 0:00:06]} Qb1+ {[%emt 0:01:16]} 51. Ka3 {[%emt 0:00:03]} Qc1+ {[%emt 0:00:05]} 52. Kb3 {[%emt 0:01:28]} Qb1+ {[%emt 0:00:10]} 1/2-1/2

[Event "15th Governor Cup 2019"]
[Site "Khanty-Mansiysk"]
[Date "2019.11.20"]
[Round "3.13"]
[White "Nesterov, Arseniy"]
[Black "Lysenko, Margarita"]
[Result "1-0"]
[ECO "E12"]
[WhiteElo "2489"]
[BlackElo "2243"]
[Annotator "ChessBase"]
[PlyCount "83"]
[EventDate "2019.11.19"]
[EventType "swiss"]
[EventCountry "RUS"]
[SourceTitle "playchess.com"]
[Source "ChessBase"]
[SourceQuality "1"]
[TimeControl "5400+30"]

1. d4 {[%emt 0:00:00]} Nf6 {[%emt 0:00:00]} 2. c4 {[%emt 0:00:00]} e6 {[%emt 0:00:00]} 3. Nf3 {[%emt 0:00:00]} b6 {[%emt 0:00:00]} 4. a3 {[%emt 0:00:00]} Bb7 {[%emt 0:00:30]} 5. Nc3 {[%emt 0:00:03]} Ne4 {[%emt 0:05:55]} 6. Qc2 {[%emt 0:06:43]} Nxc3 {[%emt 0:06:08]} 7. Qxc3 {[%emt 0:00:09]} Be7 {[%emt 0:03:08]} 8. Bf4 {[%emt 0:04:13]} O-O {[%emt 0:04:06]} 9. e3 {[%emt 0:00:10]} f5 {[%emt 0:10:16]} 10. h3 {[%emt 0:03:36]} a5 {[%emt 0:06:47]} 11. Be2 {[%emt 0:12:02]} a4 {[%emt 0:06:24]} 12. O-O-O {[%emt 0:13:43]} d6 {[%emt 0:05:42]} 13. Rhg1 {[%emt 0:02:56]} Nd7 {[%emt 0:08:42]} 14. g4 {[%emt 0:04:01]} Nf6 {[%emt 0:04:16]} 15. Ng5 {[%emt 0:12:34]} Ne4 {[%emt 0:01:38]} 16. Nxe4 {[%emt 0:00:03]} fxe4 {[%emt 0:00:52]} 17. g5 {[%emt 0:00:10]} Qe8 {[%emt 0:04:20]} 18. Bg4 {[%emt 0:01:59]} Bd8 {[%emt 0:00:44]} 19. h4 {[%emt 0:03:09]} d5 {[%emt 0:02:18]} 20. h5 {[%emt 0:05:35]} Qd7 {[%emt 0:07:13]} 21. h6 {[%emt 0:00:50]} g6 {[%emt 0:00:09]} 22. f3 {[%emt 0:02:41]} exf3 {[%emt 0:00:41]} 23. Bxf3 {[%emt 0:00:05]} c6 {[%emt 0:06:58]} 24. Qc2 {[%emt 0:04:38]} b5 {[%emt 0:00:21]} 25. c5 {[%emt 0:00:08]} Ba5 {[%emt 0:01:25]} 26. Bg4 {[%emt 0:00:53]} b4 {[%emt 0:03:10]} 27. Bd6 {[%emt 0:00:21]} bxa3 {[%emt 0:01:15]} 28. bxa3 {[%emt 0:00:04]} Rf5 {[%emt 0:03:51]} 29. Bxf5 {[%emt 0:00:17]} exf5 {[%emt 0:00:06]} 30. Kb1 {[%emt 0:00:56]} Ba6 {[%emt 0:00:37]} 31. Ka1 {[%emt 0:00:23]} Bc4 {[%emt 0:00:47]} 32. Rb1 {[%emt 0:00:23]} Qa7 {[%emt 0:03:20]} 33. Rgc1 {[%emt 0:04:38]} Qa6 {[%emt 0:00:27]} 34. Qh2 {[%emt 0:01:39]} Re8 {[%emt 0:01:05]} 35. Rb8 {[%emt 0:00:58]} Rxb8 {[%emt 0:00:54]} 36. Qe5 {[%emt 0:01:29]} Qb7 {[%emt 0:01:42]} 37. Bxb8 {[%emt 0:00:08]} Qd7 {[%emt 0:00:32]} 38. Qd6 {[%emt 0:02:16]} Qe8 {[%emt 0:01:03]} 39. Qf6 {[%emt 0:00:25]} Qf8 {[%emt 0:00:54]} 40. Qe6+ {[%emt 0:01:38]} Qf7 {[%emt 0:00:10]} 41. Qxc6 {[%emt 0:00:08]} Bd2 {[%emt 0:00:51]} 42. Bd6 {[%emt 0:00:18]} 1-0

[Event "15th Governor Cup 2019"]
[Site "Khanty-Mansiysk"]
[Date "2019.11.20"]
[Round "3.15"]
[White "Skatchkov, Valery"]
[Black "Remizov, Yaroslav"]
[Result "1/2-1/2"]
[ECO "E06"]
[WhiteElo "2309"]
[BlackElo "2394"]
[Annotator "ChessBase"]
[PlyCount "33"]
[EventDate "2019.11.19"]
[EventType "swiss"]
[EventCountry "RUS"]
[SourceTitle "playchess.com"]
[Source "ChessBase"]
[SourceQuality "1"]
[TimeControl "5400+30"]

1. d4 {[%emt 0:01:23]} d5 {[%emt 0:00:00]} 2. c4 {[%emt 0:00:09]} e6 {[%emt 0:00:00]} 3. Nf3 {[%emt 0:00:04]} Nf6 {[%emt 0:00:36]} 4. g3 {[%emt 0:00:56]} Be7 {[%emt 0:00:25]} 5. Bg2 {[%emt 0:00:08]} O-O {[%emt 0:00:17]} 6. O-O {[%emt 0:00:18]} dxc4 {[%emt 0:00:21]} 7. Ne5 {[%emt 0:02:01]} Nc6 {[%emt 0:00:14]} 8. Bxc6 {[%emt 0:00:19]} bxc6 {[%emt 0:00:24]} 9. Nxc6 {[%emt 0:00:05]} Qe8 {[%emt 0:06:33]} 10. Nxe7+ {[%emt 0:00:05]} Qxe7 {[%emt 0:00:02]} 11. Qa4 {[%emt 0:00:13]} e5 {[%emt 0:00:43]} 12. dxe5 {[%emt 0:01:59]} Qxe5 {[%emt 0:00:26]} 13. Qxc4 {[%emt 0:00:03]} Be6 {[%emt 0:00:27]} 14. Qc2 {[%emt 0:02:42]} Bf5 {[%emt 0:07:17]} 15. Qc4 {[%emt 0:00:09]} Be6 {[%emt 0:00:57]} 16. Qc2 {[%emt 0:00:06]} Bf5 {[%emt 0:00:18]} 17. Qc4 {[%emt 0:00:03]} 1/2-1/2

[Event "15th Governor Cup 2019"]
[Site "Khanty-Mansiysk"]
[Date "2019.11.20"]
[Round "3.16"]
[White "Martynyuk, Elizaveta"]
[Black "Obgolts, Erik"]
[Result "1/2-1/2"]
[ECO "B06"]
[WhiteElo "2020"]
[BlackElo "2371"]
[Annotator "ChessBase"]
[PlyCount "116"]
[EventDate "2019.11.19"]
[EventType "swiss"]
[EventCountry "RUS"]
[SourceTitle "playchess.com"]
[Source "ChessBase"]
[SourceQuality "1"]
[TimeControl "5400+30"]

1. e4 {[%emt 0:03:32]} g6 {[%emt 0:00:00]} 2. d4 {[%emt 0:00:16]} Bg7 {[%emt 0:00:00]} 3. Nc3 {[%emt 0:00:14]} c6 {[%emt 0:00:00]} 4. Be3 {[%emt 0:00:05]} d5 {[%emt 0:00:00]} 5. Qd2 {[%emt 0:10:03]} dxe4 {[%emt 0:01:31]} 6. Nxe4 {[%emt 0:00:06]} Nd7 {[%emt 0:00:24]} 7. O-O-O {[%emt 0:03:33]} Ngf6 {[%emt 0:00:31]} 8. f3 {[%emt 0:01:23]} O-O {[%emt 0:01:55]} 9. Bh6 {[%emt 0:01:28]} e5 {[%emt 0:06:27]} 10. Bxg7 {[%emt 0:03:15]} Kxg7 {[%emt 0:00:19]} 11. Nxf6 {[%emt 0:03:19]} Qxf6 {[%emt 0:00:10]} 12. h4 {[%emt 0:00:09]} h6 {[%emt 0:17:12]} 13. g4 {[%emt 0:05:37]} exd4 {[%emt 0:08:39]} 14. g5 {[%emt 0:00:15]} Qd6 {[%emt 0:13:13]} 15. h5 {[%emt 0:03:06]} hxg5 {[%emt 0:03:36]} 16. Nh3 {[%emt 0:02:27]} f6 {[%emt 0:10:23]} 17. hxg6 {[%emt 0:03:42]} Rh8 {[%emt 0:07:32]} 18. Be2 {[%emt 0:11:09]} Ne5 {[%emt 0:09:07]} 19. Nxg5 {[%emt 0:02:17]} Bf5 {[%emt 0:01:04]} 20. Ne4 {[%emt 0:06:59]} Bxe4 {[%emt 0:00:11]} 21. fxe4 {[%emt 0:00:28]} Nxg6 {[%emt 0:03:25]} 22. Rxh8 {[%emt 0:02:48]} Rxh8 {[%emt 0:00:09]} 23. Qxd4 {[%emt 0:01:05]} Qxd4 {[%emt 0:00:22]} 24. Rxd4 {[%emt 0:00:05]} Ne5 {[%emt 0:00:05]} 25. a4 {[%emt 0:04:21]} Rh2 {[%emt 0:03:30]} 26. Bd1 {[%emt 0:00:25]} Rh8 {[%emt 0:02:15]} 27. a5 {[%emt 0:00:08]} Kf7 {[%emt 0:00:17]} 28. Rb4 {[%emt 0:04:17]} Rb8 {[%emt 0:00:06]} 29. Kd2 {[%emt 0:00:30]} Ke7 {[%emt 0:02:16]} 30. Ke3 {[%emt 0:00:19]} b5 {[%emt 0:04:00]} 31. axb6 {[%emt 0:00:23]} axb6 {[%emt 0:00:03]} 32. Ra4 {[%emt 0:00:08]} Rh8 {[%emt 0:02:34]} 33. Be2 {[%emt 0:02:23]} Rh1 {[%emt 0:02:49]} 34. Ra6 {[%emt 0:02:53]} b5 {[%emt 0:00:25]} 35. b3 {[%emt 0:02:04]} Kd7 {[%emt 0:00:56]} 36. Kd4 {[%emt 0:01:00]} Kc7 {[%emt 0:01:17]} 37. Bd3 {[%emt 0:05:19]} Kb7 {[%emt 0:00:05]} 38. Ra2 {[%emt 0:00:15]} Rc1 {[%emt 0:01:01]} 39. Kc3 {[%emt 0:00:19]} Rb1 {[%emt 0:00:31]} 40. Kd4 {[%emt 0:00:14]} Rd1 {[%emt 0:00:42]} 41. Kc3 {[%emt 0:00:29]} Nd7 {[%emt 0:00:45]} 42. Be2 {[%emt 0:00:54]} Re1 {[%emt 0:00:11]} 43. Kd2 {[%emt 0:00:13]} Rg1 {[%emt 0:00:05]} 44. Ke3 {[%emt 0:01:05]} Rg3+ {[%emt 0:00:03]} 45. Kd4 {[%emt 0:01:35]} Nf8 {[%emt 0:01:39]} 46. Bd3 {[%emt 0:02:01]} Ne6+ {[%emt 0:00:05]} 47. Kc3 {[%emt 0:00:05]} Nc5 {[%emt 0:00:21]} 48. Kd4 {[%emt 0:00:06]} Ne6+ {[%emt 0:00:41]} 49. Kc3 {[%emt 0:00:04]} Rg1 {[%emt 0:00:05]} 50. Kb2 {[%emt 0:02:15]} Nf4 {[%emt 0:00:58]} 51. Kc3 {[%emt 0:00:13]} Rd1 {[%emt 0:00:22]} 52. Ra5 {[%emt 0:01:28]} Ne6 {[%emt 0:01:03]} 53. Kb4 {[%emt 0:02:00]} Nc7 {[%emt 0:00:30]} 54. Kc5 {[%emt 0:01:11]} Na6+ {[%emt 0:00:28]} 55. Rxa6 {[%emt 0:01:48]} Kxa6 {[%emt 0:00:04]} 56. Kxc6 {[%emt 0:00:06]} Ka5 {[%emt 0:00:36]} 57. Bxb5 {[%emt 0:00:49]} Kb4 {[%emt 0:00:31]} 58. Bd3 {[%emt 0:00:04]} Rd2 {[%emt 0:00:28]} 1/2-1/2

[Event "15th Governor Cup 2019"]
[Site "Khanty-Mansiysk"]
[Date "2019.11.20"]
[Round "3.17"]
[White "Voskresenskaya, Marta"]
[Black "Pogosyan, Stefan"]
[Result "0-1"]
[ECO "E15"]
[WhiteElo "1859"]
[BlackElo "2455"]
[Annotator "ChessBase"]
[PlyCount "94"]
[EventDate "2019.11.19"]
[EventType "swiss"]
[EventCountry "RUS"]
[SourceTitle "playchess.com"]
[Source "ChessBase"]
[SourceQuality "1"]
[TimeControl "5400+30"]

1. d4 {[%emt 0:00:00]} Nf6 {[%emt 0:00:00]} 2. Nf3 {[%emt 0:00:00]} e6 {[%emt 0:00:00]} 3. c4 {[%emt 0:00:03]} b6 {[%emt 0:00:01]} 4. g3 {[%emt 0:00:11]} Ba6 {[%emt 0:00:08]} 5. Qc2 {[%emt 0:00:27]} Bb7 {[%emt 0:04:16]} 6. Bg2 {[%emt 0:00:34]} c5 {[%emt 0:00:42]} 7. e3 {[%emt 0:05:30]} Be7 {[%emt 0:00:37]} 8. O-O {[%emt 0:00:17]} O-O {[%emt 0:00:07]} 9. Nbd2 {[%emt 0:01:18]} cxd4 {[%emt 0:02:54]} 10. exd4 {[%emt 0:02:35]} Nc6 {[%emt 0:01:50]} 11. a3 {[%emt 0:05:05]} d5 {[%emt 0:01:42]} 12. cxd5 {[%emt 0:05:00]} Qxd5 {[%emt 0:01:44]} 13. Nb3 {[%emt 0:07:04]} Rfd8 {[%emt 0:08:25]} 14. Nh4 {[%emt 0:11:01]} Qb5 {[%emt 0:11:16]} 15. a4 {[%emt 0:06:13]} Qh5 {[%emt 0:01:10]} 16. Bf3 {[%emt 0:03:16]} Nb4 {[%emt 0:00:58]} 17. Qe2 {[%emt 0:05:38]} Bxf3 {[%emt 0:00:14]} 18. Qxf3 {[%emt 0:01:11]} Rac8 {[%emt 0:06:42]} 19. Bd2 {[%emt 0:14:38]} Qxf3 {[%emt 0:13:25]} 20. Nxf3 {[%emt 0:00:30]} Nd3 {[%emt 0:00:38]} 21. Bc3 {[%emt 0:00:27]} Ne4 {[%emt 0:04:08]} 22. Rad1 {[%emt 0:02:37]} Nxc3 {[%emt 0:01:16]} 23. Rxd3 {[%emt 0:00:02]} Nxa4 {[%emt 0:00:13]} 24. Rd2 {[%emt 0:00:31]} Nc3 {[%emt 0:08:11]} 25. Ra1 {[%emt 0:04:25]} Nb5 {[%emt 0:02:51]} 26. Nc1 {[%emt 0:05:22]} Bf6 {[%emt 0:01:29]} 27. Ne2 {[%emt 0:00:30]} Rd7 {[%emt 0:01:19]} 28. Kg2 {[%emt 0:04:19]} h5 {[%emt 0:01:33]} 29. h3 {[%emt 0:00:27]} Rc4 {[%emt 0:01:17]} 30. Rad1 {[%emt 0:04:09]} Rb4 {[%emt 0:02:39]} 31. Nf4 {[%emt 0:04:36]} g6 {[%emt 0:03:42]} 32. g4 {[%emt 0:02:40]} hxg4 {[%emt 0:02:22]} 33. hxg4 {[%emt 0:01:20]} Nxd4 {[%emt 0:00:32]} 34. g5 {[%emt 0:03:06]} Bg7 {[%emt 0:01:49]} 35. Ne2 {[%emt 0:00:57]} e5 {[%emt 0:00:28]} 36. Nexd4 {[%emt 0:00:55]} exd4 {[%emt 0:01:58]} 37. Ne1 {[%emt 0:00:35]} Rb5 {[%emt 0:01:49]} 38. f4 {[%emt 0:00:03]} d3 {[%emt 0:00:23]} 39. Nxd3 {[%emt 0:01:08]} Bxb2 {[%emt 0:01:03]} 40. Nxb2 {[%emt 0:00:36]} Rxb2 {[%emt 0:00:08]} 41. Rxb2 {[%emt 0:00:06]} Rxd1 {[%emt 0:00:04]} 42. Ra2 {[%emt 0:00:10]} a5 {[%emt 0:00:45]} 43. Rb2 {[%emt 0:00:01]} Rd6 {[%emt 0:00:10]} 44. Kf3 {[%emt 0:00:08]} Re6 {[%emt 0:00:31]} 45. f5 {[%emt 0:00:30]} gxf5 {[%emt 0:00:24]} 46. Kf4 {[%emt 0:00:02]} Re4+ {[%emt 0:00:16]} 47. Kxf5 {[%emt 0:00:03]} Rb4 {[%emt 0:00:06]} 0-1

[Event "15th Governor Cup 2019"]
[Site "Khanty-Mansiysk"]
[Date "2019.11.20"]
[Round "3.18"]
[White "Shafigullina, Zarina"]
[Black "Yakimova, Mariya"]
[Result "1-0"]
[ECO "A04"]
[WhiteElo "2295"]
[BlackElo "2276"]
[Annotator "ChessBase"]
[PlyCount "93"]
[EventDate "2019.11.19"]
[EventType "swiss"]
[EventCountry "RUS"]
[SourceTitle "playchess.com"]
[Source "ChessBase"]
[SourceQuality "1"]
[TimeControl "5400+30"]

1. Nf3 {[%emt 0:00:00]} e6 {[%emt 0:00:00]} 2. g3 {[%emt 0:00:00]} Nf6 {[%emt 0:00:16]} 3. Bg2 {[%emt 0:00:00]} d5 {[%emt 0:02:25]} 4. b3 {[%emt 0:01:38]} Be7 {[%emt 0:01:49]} 5. Bb2 {[%emt 0:00:25]} O-O {[%emt 0:01:32]} 6. c4 {[%emt 0:00:12]} c6 {[%emt 0:00:32]} 7. O-O {[%emt 0:00:53]} Nbd7 {[%emt 0:00:08]} 8. d4 {[%emt 0:12:54]} b5 {[%emt 0:16:49]} 9. c5 {[%emt 0:03:33]} Ne4 {[%emt 0:00:33]} 10. b4 {[%emt 0:00:46]} a5 {[%emt 0:03:07]} 11. a3 {[%emt 0:08:55]} Qc7 {[%emt 0:05:25]} 12. Qc2 {[%emt 0:08:36]} f5 {[%emt 0:04:48]} 13. Ne5 {[%emt 0:05:35]} Bf6 {[%emt 0:00:47]} 14. f3 {[%emt 0:05:16]} Ng5 {[%emt 0:00:40]} 15. Nd3 {[%emt 0:11:40]} axb4 {[%emt 0:09:07]} 16. axb4 {[%emt 0:14:12]} Rxa1 {[%emt 0:00:00]} 17. Bxa1 {[%emt 0:00:00]} e5 {[%emt 0:00:02]} 18. f4 {[%emt 0:01:06]} exf4 {[%emt 0:01:02]} 19. gxf4 {[%emt 0:02:51]} Ne4 {[%emt 0:02:24]} 20. Ne5 {[%emt 0:00:20]} Nxe5 {[%emt 0:00:59]} 21. dxe5 {[%emt 0:00:54]} Bh4 {[%emt 0:01:18]} 22. Na3 {[%emt 0:09:18]} Qf7 {[%emt 0:07:12]} 23. Qd3 {[%emt 0:01:27]} Qh5 {[%emt 0:00:16]} 24. Nc2 {[%emt 0:01:08]} Bd7 {[%emt 0:05:21]} 25. Nd4 {[%emt 0:00:53]} Ra8 {[%emt 0:00:10]} 26. e6 {[%emt 0:08:39]} Be8 {[%emt 0:08:33]} 27. Bb2 {[%emt 0:00:26]} Ra4 {[%emt 0:00:40]} 28. Bxe4 {[%emt 0:01:24]} fxe4 {[%emt 0:00:20]} 29. Qd2 {[%emt 0:00:39]} Qg4+ {[%emt 0:05:43]} 30. Kh1 {[%emt 0:00:04]} Qh3 {[%emt 0:01:07]} 31. Rg1 {[%emt 0:00:09]} e3 {[%emt 0:04:43]} 32. Qc3 {[%emt 0:00:21]} Bf6 {[%emt 0:00:31]} 33. Qe1 {[%emt 0:00:04]} Bxd4 {[%emt 0:08:10]} 34. Bxd4 {[%emt 0:00:04]} Bg6 {[%emt 0:00:10]} 35. Rg3 {[%emt 0:00:11]} Qxe6 {[%emt 0:01:37]} 36. Rxe3 {[%emt 0:00:11]} Qg4 {[%emt 0:01:06]} 37. Rg3 {[%emt 0:01:57]} Qxf4 {[%emt 0:00:24]} 38. e3 {[%emt 0:00:46]} Qe4+ {[%emt 0:00:15]} 39. Kg1 {[%emt 0:00:06]} Ra7 {[%emt 0:06:32]} 40. Rg2 {[%emt 0:01:36]} Qd3 {[%emt 0:02:38]} 41. Qf1 {[%emt 0:00:25]} Qb3 {[%emt 0:00:33]} 42. Rf2 {[%emt 0:00:32]} Ra8 {[%emt 0:00:23]} 43. Qh3 {[%emt 0:00:24]} Bd3 {[%emt 0:00:49]} 44. Qe6+ {[%emt 0:00:17]} Kh8 {[%emt 0:00:05]} 45. Bxg7+ {[%emt 0:01:10]} Kxg7 {[%emt 0:00:05]} 46. Rf7+ {[%emt 0:00:31]} Kg8 {[%emt 0:00:06]} 47. Re7+ {[%emt 0:00:12]} 1-0

[Event "15th Governor Cup 2019"]
[Site "Khanty-Mansiysk"]
[Date "2019.11.20"]
[Round "3.19"]
[White "Chekletsov, Ilya"]
[Black "Kochukova, Anna"]
[Result "1-0"]
[ECO "E06"]
[WhiteElo "2386"]
[BlackElo "2117"]
[Annotator "ChessBase"]
[PlyCount "89"]
[EventDate "2019.11.19"]
[EventType "swiss"]
[EventCountry "RUS"]
[SourceTitle "playchess.com"]
[Source "ChessBase"]
[SourceQuality "1"]
[TimeControl "5400+30"]

1. d4 {[%emt 0:13:44]} Nf6 {[%emt 0:00:00]} 2. c4 {[%emt 0:00:43]} e6 {[%emt 0:00:00]} 3. g3 {[%emt 0:00:05]} d5 {[%emt 0:00:10]} 4. Bg2 {[%emt 0:00:06]} Be7 {[%emt 0:01:25]} 5. Nf3 {[%emt 0:00:07]} O-O {[%emt 0:00:16]} 6. O-O {[%emt 0:00:06]} b6 {[%emt 0:00:24]} 7. cxd5 {[%emt 0:02:32]} exd5 {[%emt 0:00:12]} 8. Bf4 {[%emt 0:00:47]} Bb7 {[%emt 0:00:14]} 9. Nc3 {[%emt 0:00:10]} Na6 {[%emt 0:00:15]} 10. Ne5 {[%emt 0:02:48]} c5 {[%emt 0:00:45]} 11. dxc5 {[%emt 0:00:05]} Nxc5 {[%emt 0:01:38]} 12. Nb5 {[%emt 0:01:01]} Ne6 {[%emt 0:10:27]} 13. Be3 {[%emt 0:03:45]} Qb8 {[%emt 0:04:37]} 14. Nd3 {[%emt 0:00:12]} Ne4 {[%emt 0:16:06]} 15. Rc1 {[%emt 0:07:33]} Rc8 {[%emt 0:04:24]} 16. Nf4 {[%emt 0:21:49]} Rxc1 {[%emt 0:11:49]} 17. Qxc1 {[%emt 0:01:34]} Nxf4 {[%emt 0:02:49]} 18. Bxf4 {[%emt 0:00:07]} Qf8 {[%emt 0:00:20]} 19. Rd1 {[%emt 0:05:27]} Rc8 {[%emt 0:04:16]} 20. Qb1 {[%emt 0:00:06]} a6 {[%emt 0:01:40]} 21. Nc7 {[%emt 0:01:02]} Rd8 {[%emt 0:08:45]} 22. Qd3 {[%emt 0:04:45]} b5 {[%emt 0:08:38]} 23. Qb3 {[%emt 0:02:47]} Nc5 {[%emt 0:06:24]} 24. Qc2 {[%emt 0:00:21]} Ne4 {[%emt 0:00:23]} 25. Qb3 {[%emt 0:01:44]} Nc5 {[%emt 0:00:12]} 26. Qe3 {[%emt 0:00:34]} Ne4 {[%emt 0:10:56]} 27. Qb6 {[%emt 0:05:54]} Ba8 {[%emt 0:04:18]} 28. Nxa6 {[%emt 0:00:27]} b4 {[%emt 0:01:43]} 29. Bxe4 {[%emt 0:04:06]} dxe4 {[%emt 0:00:04]} 30. Rxd8 {[%emt 0:00:04]} Bxd8 {[%emt 0:00:12]} 31. Qxb4 {[%emt 0:00:04]} Qe8 {[%emt 0:00:39]} 32. Qb8 {[%emt 0:02:44]} Bc6 {[%emt 0:00:20]} 33. Bc7 {[%emt 0:00:13]} Bxc7 {[%emt 0:00:28]} 34. Qxe8+ {[%emt 0:00:05]} Bxe8 {[%emt 0:00:05]} 35. Nxc7 {[%emt 0:00:03]} Bc6 {[%emt 0:00:16]} 36. Kf1 {[%emt 0:00:08]} Kf8 {[%emt 0:00:12]} 37. Ke1 {[%emt 0:00:19]} Ke7 {[%emt 0:00:31]} 38. Kd2 {[%emt 0:00:45]} Kd6 {[%emt 0:00:30]} 39. Na6 {[%emt 0:00:06]} Bb5 {[%emt 0:00:29]} 40. Nb4 {[%emt 0:00:06]} Kc5 {[%emt 0:00:05]} 41. Nc2 {[%emt 0:00:04]} f5 {[%emt 0:00:36]} 42. b3 {[%emt 0:00:28]} g5 {[%emt 0:00:14]} 43. a4 {[%emt 0:00:15]} Bd7 {[%emt 0:00:09]} 44. e3 {[%emt 0:00:49]} h6 {[%emt 0:01:19]} 45. Kc3 {[%emt 0:00:05]} 1-0

[Event "15th Governor Cup 2019"]
[Site "Khanty-Mansiysk"]
[Date "2019.11.20"]
[Round "3.20"]
[White "Semenova, Elena"]
[Black "Mukhina, Jana"]
[Result "1-0"]
[ECO "C79"]
[WhiteElo "2282"]
[BlackElo "2105"]
[Annotator "ChessBase"]
[PlyCount "21"]
[EventDate "2019.11.19"]
[EventType "swiss"]
[EventCountry "RUS"]
[SourceTitle "playchess.com"]
[Source "ChessBase"]
[SourceQuality "1"]
[TimeControl "5400+30"]

1. e4 {[%emt 0:00:00]} e5 {[%emt 0:00:00]} 2. Nf3 {[%emt 0:00:00]} Nc6 {[%emt 0:00:04]} 3. Bb5 {[%emt 0:00:04]} a6 {[%emt 0:00:14]} 4. Ba4 {[%emt 0:00:05]} Nf6 {[%emt 0:00:20]} 5. O-O {[%emt 0:00:08]} d6 {[%emt 0:00:54]} 6. Re1 {[%emt 0:05:12]} Bd7 {[%emt 0:00:27]} 7. c3 {[%emt 0:01:03]} g6 {[%emt 0:00:24]} 8. d4 {[%emt 0:00:05]} Bg7 {[%emt 0:00:13]} 9. Nbd2 {[%emt 0:00:12]} Qe7 {[%emt 0:06:43]} 10. h3 {[%emt 0:01:31]} O-O {[%emt 0:00:21]} 11. Nf1 {[%emt 0:12:36]} 1-0